fUSD/lending_fUSD_20250410
["ID","MTS","AMOUNT","RATE_DAILY","PERIOD"]
[357643743,1744264054092,-3318.36668136,0.00038346,3]
[357643783,1744264232475,-460.71339887,0.00034733,2]
[357643785,1744264232485,-305.01,0.00034734,2]
[357643787,1744264232494,-305.88,0.00034743,2]
[357643789,1744264232504,-300.98,0.00034809,5]
[357643790,1744264232513,-305.64,0.00034813,2]
[357643792,1744264232522,-302.2,0.00034833,2]
[357643794,1744264232532,-305.43,0.00034952,2]
[357643796,1744264232541,-302.98,0.00034952,2]
[357643798,1744264232550,-460.71339886,0.00035435,2]
[357643800,1744264232558,-300.97,0.00035666,5]
[357643802,1744264232568,-460.71339886,0.00036138,2]
[357643803,1744264232577,-300.67,0.00036527,5]
[357643805,1744264232586,-460.71339886,0.0003684,2]
[357643806,1744264232594,-303.04,0.00037356,5]
[357643807,1744264232603,-460.71339886,0.00037543,2]
[357643808,1744264232612,-278.008,0.00037569,2]
[357643809,1744264232622,-7.66486475,0.00038245,2]
[357643810,1744264232636,-453.04853411,0.00038245,2]
[357643811,1744264232646,-2500.0,0.00038256,2]
[357643812,1744264232655,-210.09179934,0.00038256,2]
[357643813,1744264232664,-323.29,0.000383,2]
[357643814,1744264232674,-400.0,0.00038344,5]
[357643815,1744264232683,-217.24573827,0.00038345,15]
[357643816,1744264232698,-282.75426173,0.00038345,15]
[357643817,1744264232707,-270.79573827,0.00038345,15]
[357643818,1744264232719,-708.65984011,0.00038345,15]
[357643819,1744264232728,-979.45557838,0.00038345,15]
[357643820,1744264232738,-239.3061869,0.00038345,15]
[357643821,1744264232747,-979.45557838,0.00038345,15]
[357643822,1744264232759,-979.45557838,0.00038345,15]
[357643823,1744264232767,-979.45557838,0.00038345,15]
[357643824,1744264232777,-979.45557838,0.00038345,15]
[357643825,1744264232786,-979.45557838,0.00038345,15]
[357643826,1744264232795,-979.45557838,0.00038345,15]
[357643827,1744264232805,-979.45557838,0.00038345,15]
[357643828,1744264232814,-979.45557838,0.00038345,15]
[357643829,1744264232823,-979.45557838,0.00038345,15]
[357643830,1744264232834,-979.45557838,0.00038345,15]
[357643831,1744264232844,-979.45557838,0.00038345,15]
[357643832,1744264232853,-979.45557838,0.00038345,15]
[357643833,1744264232862,-979.45557838,0.00038345,15]
[357643834,1744264232871,-979.45557838,0.00038345,15]
[357643835,1744264232880,-979.45557838,0.00038345,15]
[357643836,1744264232889,-602.24299139,0.00038345,15]
[357643837,1744264232902,-377.21258699,0.00038345,15]
[357643838,1744264232911,-979.45557838,0.00038345,15]
[357643839,1744264232920,-979.45557838,0.00038345,15]
[357643840,1744264232929,-979.45557838,0.00038345,15]
[357643841,1744264232939,-979.45557838,0.00038345,15]
[357643842,1744264232948,-2518.23738919,0.00038345,15]
[357643843,1744264232956,-2518.23738919,0.00038345,15]
[357643844,1744264232966,-2518.23738919,0.00038345,15]
[357643845,1744264232974,-2518.23738919,0.00038345,15]
[357643846,1744264232984,-2518.23738919,0.00038345,15]
[357643847,1744264232993,-2518.23738919,0.00038345,15]
[357643848,1744264233002,-2518.23738919,0.00038345,15]
[357643849,1744264233012,-2518.23738919,0.00038345,15]
[357643850,1744264233021,-2518.23738919,0.00038345,15]
[357643851,1744264233031,-4494.08518683,0.00038345,15]
[357643852,1744264233040,-40628.49032196,0.00038346,3]
[357643853,1744264233052,-2208.97184433,0.00038346,3]
[357643854,1744264233064,-84559.97376387,0.00038346,3]
[357643855,1744264233084,-1396.46013484,0.00038346,3]
[357643856,1744264233096,-757.30035911,0.00038346,3]
[357643857,1744264233108,-3056.0375105,0.00038346,3]
[357643858,1744264233149,-368.70740901,0.00038346,3]
[357643859,1744264233160,-19478.05451799,0.00038346,3]
[357643860,1744264233172,-7933.5579185,0.00038346,3]
[357643861,1744264233188,-6530.04607583,0.00038346,3]
[357643862,1744264233200,-1139.681725,0.00038346,3]
[357643863,1744264233321,-628.42,0.00038346,3]
[357643864,1744264233334,-1401.37369004,0.00038346,3]
[357643865,1744264233345,-950.26546194,0.00038346,3]
[357643866,1744264233357,-1266.60175907,0.00038346,3]
[357643867,1744264233369,-580.09410336,0.00038346,3]
[357643868,1744264233381,-413.21193929,0.00038346,3]
[357643870,1744264237782,-1240.07,0.00037653,30]
[357643871,1744264237792,-884.93,0.00038346,3]
[357643872,1744264237901,-607.500001,0.00038346,3]
[357643873,1744264237914,-736.57390145,0.00038346,3]
[357643874,1744264237925,-1026.92935832,0.00038346,3]
[357643875,1744264237937,-368.47889,0.00038346,3]
[357643876,1744264237949,-680.891175,0.00038346,3]
[357643877,1744264237960,-528.69395831,0.00038346,3]
[357643878,1744264237971,-1085.09011866,0.00038346,3]
[357643879,1744264237983,-500.9997154,0.00038346,3]
[357643880,1744264237994,-486.09,0.00038346,3]
[357643881,1744264238021,-925.1,0.00038346,3]
[357643882,1744264238032,-1029.578,0.00038346,3]
[357643883,1744264238043,-614.6374616,0.00038346,3]
[357643893,1744264239198,-43498.43966862,0.00038346,3]
[357643894,1744264239208,-85565.3706681,0.00038346,3]
[357643895,1744264239217,-151.73,0.00038346,2]
[357643896,1744264239227,-1687.0,0.00038346,3]
[357643897,1744264239236,-150.0,0.00038346,3]
[357643898,1744264239245,-500.0,0.00038356,2]
[357643899,1744264239254,-514.52113343,0.00038356,2]
[357643900,1744264239263,-500.0,0.00038356,2]
[357643901,1744264239273,-500.0,0.00038356,2]
[357643902,1744264239282,-505.93011638,0.00038356,2]
[357643903,1744264239291,-516.68188523,0.00038356,2]
[357643904,1744264239302,-500.0,0.00038356,2]
[357643905,1744264239311,-509.11517322,0.00038356,2]
[357643906,1744264239320,-354.34919994,0.00038356,2]
[357643907,1744264239330,-500.0,0.00038356,2]
[357643908,1744264239339,-500.0,0.00038356,2]
[357643909,1744264239348,-500.0,0.00038356,2]
[357643910,1744264239358,-500.0,0.00038356,2]
[357643911,1744264239367,-500.0,0.00038356,2]
[357643912,1744264239376,-500.0,0.00038356,2]
[357643913,1744264239385,-500.0,0.00038356,2]
[357643914,1744264239395,-500.0,0.00038356,2]
[357643915,1744264239404,-379.43885402,0.00038356,2]
[357643916,1744264239414,-500.0,0.00038356,2]
[357643917,1744264239423,-500.0,0.00038356,2]
[357643918,1744264239432,-503.0,0.00038356,2]
[357643919,1744264239441,-500.0,0.00038356,2]
[357643920,1744264239451,-529.04359191,0.00038356,2]
[357643921,1744264239460,-500.0,0.00038356,2]
[357643922,1744264239470,-501.36548579,0.00038356,2]
[357643923,1744264239479,-500.0,0.00038356,2]
[357643924,1744264239488,-1000.0,0.00038356,2]
[357643925,1744264239497,-500.0,0.00038356,2]
[357643926,1744264239506,-523.85747907,0.00038356,2]
[357643927,1744264239515,-500.0,0.00038356,2]
[357643928,1744264239524,-508.09655671,0.00038356,2]
[357643930,1744264239534,-500.0,0.00038356,2]
[357643931,1744264239544,-500.0,0.00038356,2]
[357643932,1744264239553,-500.0,0.00038356,2]
[357643933,1744264239563,-663.0,0.00038356,2]
[357643934,1744264239571,-547.71784312,0.00038356,2]
[357643935,1744264239581,-501.62154448,0.00038356,2]
[357643936,1744264239590,-510.16507075,0.00038356,2]
[357643937,1744264239600,-500.0,0.00038356,2]
[357643938,1744264239609,-500.0,0.00038356,2]
[357643939,1744264239618,-503.28123604,0.00038356,2]
[357643940,1744264239627,-506.61697327,0.00038356,2]
[357643941,1744264239637,-500.0,0.00038356,2]
[357643942,1744264239646,-500.0,0.00038356,2]
[357643943,1744264239656,-500.0,0.00038356,2]
[357643945,1744264239665,-586.91283386,0.00038356,2]
[357643947,1744264239675,-513.56793328,0.00038356,2]
[357643949,1744264239684,-500.0,0.00038356,2]
[357643950,1744264239693,-500.0,0.00038356,2]
[357643951,1744264239703,-634.63171996,0.00038356,2]
[357643952,1744264239712,-500.0,0.00038356,2]
[357643953,1744264239721,-500.0,0.00038356,2]
[357643954,1744264239731,-500.0,0.00038356,2]
[357643955,1744264239740,-500.0,0.00038356,2]
[357643956,1744264239750,-500.0,0.00038356,2]
[357643957,1744264239763,-500.0,0.00038356,2]
[357643958,1744264239772,-500.0,0.00038356,2]
[357643959,1744264239781,-500.0,0.00038356,2]
[357643960,1744264239791,-500.0,0.00038356,2]
[357643961,1744264239800,-500.0,0.00038356,2]
[357643962,1744264239810,-500.0,0.00038356,2]
[357643963,1744264239819,-500.0,0.00038356,2]
[357643964,1744264239828,-500.0,0.00038356,2]
[357643965,1744264239839,-928.67,0.00038356,2]
[357643966,1744264239848,-500.0,0.00038356,2]
[357643967,1744264239858,-500.0,0.00038356,2]
[357643968,1744264239867,-527.31561476,0.00038356,2]
[357643969,1744264239876,-515.4110608,0.00038356,2]
[357643970,1744264239885,-500.0,0.00038356,2]
[357643971,1744264239895,-510.41580515,0.00038356,2]
[357643972,1744264239904,-500.0,0.00038356,2]
[357643973,1744264239914,-363.80917589,0.00038356,2]
[357643974,1744264239923,-500.0,0.00038356,2]
[357643975,1744264239932,-500.0,0.00038356,2]
[357643976,1744264239942,-570.17341583,0.00038356,2]
[357643977,1744264239951,-500.0,0.00038356,2]
[357643978,1744264239960,-500.0,0.00038356,2]
[357643979,1744264239970,-500.0,0.00038356,2]
[357643980,1744264239979,-500.0,0.00038356,2]
[357643981,1744264239988,-500.0,0.00038356,2]
[357643982,1744264239998,-280.34841766,0.00038356,2]
[357643983,1744264240007,-500.0,0.00038356,2]
[357643984,1744264240016,-500.0,0.00038356,2]
[357643985,1744264240025,-500.0,0.00038356,2]
[357643986,1744264240035,-500.0,0.00038356,2]
[357643987,1744264240044,-500.0,0.00038356,2]
[357643988,1744264240054,-1000.7,0.00038356,2]
[357643989,1744264240063,-381.45415202,0.00038356,2]
[357643990,1744264240073,-523.12941105,0.00038356,2]
[357643991,1744264240082,-546.00648143,0.00038356,2]
[357643992,1744264240092,-500.0,0.00038356,2]
[357643993,1744264240101,-500.0,0.00038356,2]
[357643994,1744264240111,-500.0,0.00038356,2]
[357643995,1744264240121,-500.0,0.00038356,2]
[357643996,1744264240130,-500.0,0.00038356,2]
[357643997,1744264240139,-500.0,0.00038356,2]
[357643998,1744264240148,-500.0,0.00038356,2]
[357643999,1744264240158,-266.39536749,0.00038356,2]
[357644000,1744264240167,-500.0,0.00038356,2]
[357644001,1744264240176,-568.25745816,0.00038356,2]
[357644002,1744264240186,-500.0,0.00038356,2]
[357644003,1744264240196,-500.0,0.00038356,2]
[357644004,1744264240205,-500.0,0.00038356,2]
[357644005,1744264240214,-500.0,0.00038356,2]
[357644006,1744264240223,-500.0,0.00038356,2]
[357644007,1744264240233,-500.0,0.00038356,2]
[357644008,1744264240243,-500.0,0.00038356,2]
[357644009,1744264240252,-500.0,0.00038356,2]
[357644010,1744264240262,-500.0,0.00038356,2]
[357644011,1744264240272,-500.0,0.00038356,2]
[357644012,1744264240281,-511.16149786,0.00038356,2]
[357644013,1744264240291,-573.78,0.00038356,2]
[357644014,1744264240300,-500.0,0.00038356,2]
[357644015,1744264240309,-504.0901111,0.00038356,2]
[357644016,1744264240319,-500.0,0.00038356,2]
[357644017,1744264240330,-500.0,0.00038356,2]
[357644018,1744264240339,-500.0,0.00038356,2]
[357644019,1744264240349,-508.36322614,0.00038356,2]
[357644020,1744264240358,-551.51023129,0.00038356,2]
[357644021,1744264240367,-506.47285493,0.00038356,2]
[357644022,1744264240377,-500.0,0.00038356,2]
[357644023,1744264240387,-500.0,0.00038356,2]
[357644024,1744264240397,-500.0,0.00038356,2]
[357644025,1744264240407,-500.0,0.00038356,2]
[357644026,1744264240417,-500.0,0.00038356,2]
[357644027,1744264240426,-226.97661376,0.00038356,2]
[357644028,1744264240435,-500.0,0.00038356,2]
[357644029,1744264240445,-514.29067209,0.00038356,2]
[357644030,1744264240454,-500.0,0.00038356,2]
[357644031,1744264240464,-523.55,0.00038356,2]
[357644032,1744264240474,-500.0,0.00038356,2]
[357644033,1744264240483,-500.0,0.00038356,2]
[357644034,1744264240493,-507.16068817,0.00038356,2]
[357644035,1744264240502,-507.68059272,0.00038356,2]
[357644036,1744264240511,-1123.08,0.00038356,2]
[357644037,1744264240521,-500.0,0.00038356,2]
[357644038,1744264240531,-500.0,0.00038356,2]
[357644039,1744264240540,-500.0,0.00038356,2]
[357644040,1744264240550,-500.0,0.00038356,2]
[357644041,1744264240559,-500.0,0.00038356,2]
[357644042,1744264240569,-631.89,0.00038356,2]
[357644043,1744264240579,-500.0,0.00038356,2]
[357644044,1744264240589,-500.0,0.00038356,2]
[357644045,1744264240599,-500.0,0.00038356,2]
[357644046,1744264240609,-644.64,0.00038356,2]
[357644047,1744264240618,-503.82400397,0.00038356,2]
[357644048,1744264240628,-500.0,0.00038356,2]
[357644049,1744264240637,-500.0,0.00038356,2]
[357644050,1744264240646,-546.88,0.00038356,2]
[357644051,1744264240657,-500.0,0.00038356,2]
[357644052,1744264240666,-500.0,0.00038356,2]
[357644053,1744264240675,-164.33767,0.00038356,2]
[357644054,1744264240684,-500.0,0.00038356,2]
[357644055,1744264240694,-500.0,0.00038356,2]
[357644056,1744264240704,-501.80764815,0.00038356,2]
[357644057,1744264240713,-527.07783603,0.00038356,2]
[357644058,1744264240722,-503.18519249,0.00038356,2]
[357644059,1744264240731,-657.77,0.00038356,2]
[357644060,1744264240740,-500.0,0.00038356,2]
[357644061,1744264240750,-229.5117334,0.00038356,2]
[357644062,1744264240764,-500.0,0.00038356,2]
[357644063,1744264240773,-500.0,0.00038356,2]
[357644064,1744264240783,-500.0,0.00038356,2]
[357644065,1744264240792,-500.0,0.00038356,2]
[357644066,1744264240803,-500.0,0.00038356,2]
[357644067,1744264240812,-500.0,0.00038356,2]
[357644068,1744264240822,-500.0,0.00038356,2]
[357644069,1744264240832,-500.0,0.00038356,2]
[357644070,1744264240843,-832.75,0.00038356,2]
[357644071,1744264240852,-502.62945359,0.00038356,2]
[357644072,1744264240861,-543.14835278,0.00038356,2]
[357644073,1744264240871,-528.02,0.00038356,2]
[357644074,1744264240881,-500.0,0.00038356,2]
[357644075,1744264240890,-502.62724845,0.00038356,2]
[357644076,1744264240900,-503.15222074,0.00038356,2]
[357644077,1744264240909,-500.0,0.00038356,2]
[357644078,1744264240918,-577.96,0.00038356,2]
[357644079,1744264240928,-500.0,0.00038356,2]
[357644080,1744264240937,-500.0,0.00038356,2]
[357644081,1744264240946,-575.52,0.00038356,2]
[357644082,1744264240955,-500.0,0.00038356,2]
[357644083,1744264240965,-666.2,0.00038356,2]
[357644084,1744264240976,-500.0,0.00038356,2]
[357644085,1744264240987,-500.0,0.00038356,2]
[357644086,1744264240997,-500.0,0.00038356,2]
[357644087,1744264241006,-500.0,0.00038356,2]
[357644088,1744264241016,-500.0,0.00038356,2]
[357644089,1744264241025,-500.0,0.00038356,2]
[357644090,1744264241038,-500.0,0.00038356,2]
[357644091,1744264241051,-500.0,0.00038356,2]
[357644092,1744264241060,-1165.85,0.00038356,2]
[357644093,1744264241070,-500.0,0.00038356,2]
[357644094,1744264241079,-500.0,0.00038356,2]
[357644095,1744264241089,-500.0,0.00038356,2]
[357644096,1744264241098,-569.32345623,0.00038356,2]
[357644097,1744264241107,-500.0,0.00038356,2]
[357644098,1744264241117,-225.77412016,0.00038356,2]
[357644099,1744264241126,-513.27878729,0.00038356,2]
[357644100,1744264241135,-500.0,0.00038356,2]
[357644101,1744264241144,-500.0,0.00038356,2]
[357644102,1744264241154,-474.48620345,0.00038356,2]
[357644103,1744264241164,-721.07,0.00038356,2]
[357644104,1744264241173,-500.0,0.00038356,2]
[357644105,1744264241183,-500.57992791,0.00038356,2]
[357644106,1744264241192,-500.0,0.00038356,2]
[357644107,1744264241202,-500.0,0.00038356,2]
[357644108,1744264241211,-500.0,0.00038356,2]
[357644109,1744264241221,-500.0,0.00038356,2]
[357644110,1744264241230,-526.89437679,0.00038356,2]
[357644111,1744264241239,-503.27153461,0.00038356,2]
[357644112,1744264241248,-500.0,0.00038356,2]
[357644113,1744264241258,-501.21784359,0.00038356,2]
[357644114,1744264241268,-500.0,0.00038356,2]
[357644115,1744264241278,-959.5,0.00038356,2]
[357644116,1744264241287,-500.0,0.00038356,2]
[357644117,1744264241297,-500.0,0.00038356,2]
[357644118,1744264241306,-500.0,0.00038356,2]
[357644119,1744264241316,-526.09,0.00038356,2]
[357644120,1744264241325,-500.0,0.00038356,2]
[357644121,1744264241334,-500.0,0.00038356,2]
[357644122,1744264241342,-500.0,0.00038356,2]
[357644123,1744264241351,-500.0,0.00038356,2]
[357644124,1744264241358,-570.78,0.00038356,2]
[357644125,1744264241365,-500.0,0.00038356,2]
[357644126,1744264241372,-501.5920186,0.00038356,2]
[357644127,1744264241381,-403.27499944,0.00038356,2]
[357644128,1744264241388,-532.837127,0.00038356,2]
[357644129,1744264241396,-500.0,0.00038356,2]
[357644130,1744264241405,-500.0,0.00038356,2]
[357644131,1744264241413,-500.0,0.00038356,2]
[357644132,1744264241421,-732.09,0.00038356,2]
[357644133,1744264241430,-513.07730057,0.00038356,2]
[357644134,1744264241439,-645.67,0.00038356,2]
[357644135,1744264241448,-500.0,0.00038356,2]
[357644136,1744264241458,-500.0,0.00038356,2]
[357644137,1744264241466,-512.92736676,0.00038356,2]
[357644138,1744264241476,-500.0,0.00038356,2]
[357644139,1744264241484,-500.0,0.00038356,2]
[357644140,1744264241492,-561.72216975,0.00038356,2]
[357644141,1744264241502,-500.0,0.00038356,2]
[357644142,1744264241510,-505.40215692,0.00038356,2]
[357644143,1744264241519,-1021.37,0.00038356,2]
[357644144,1744264241529,-500.0,0.00038356,2]
[357644145,1744264241538,-500.0,0.00038356,2]
[357644146,1744264241547,-500.0,0.00038356,2]
[357644147,1744264241557,-501.6022843,0.00038356,2]
[357644148,1744264241566,-500.0,0.00038356,2]
[357644149,1744264241576,-575.81438461,0.00038356,2]
[357644150,1744264241585,-500.0,0.00038356,2]
[357644151,1744264241594,-500.0,0.00038356,2]
[357644152,1744264241603,-500.0,0.00038356,2]
[357644153,1744264241613,-500.0,0.00038356,2]
[357644154,1744264241622,-403.84146749,0.00038356,2]
[357644155,1744264241631,-536.76870694,0.00038356,2]
[357644156,1744264241640,-787.82,0.00038356,2]
[357644157,1744264241650,-501.50721696,0.00038356,2]
[357644158,1744264241660,-500.0,0.00038356,2]
[357644159,1744264241669,-500.0,0.00038356,2]
[357644160,1744264241679,-500.0,0.00038356,2]
[357644161,1744264241688,-530.84837413,0.00038356,2]
[357644162,1744264241698,-500.0,0.00038356,2]
[357644163,1744264241707,-787.78,0.00038356,2]
[357644164,1744264241716,-500.0,0.00038356,2]
[357644165,1744264241726,-500.0,0.00038356,2]
[357644166,1744264241735,-515.02609363,0.00038356,2]
[357644167,1744264241745,-500.0,0.00038356,2]
[357644168,1744264241755,-500.0,0.00038356,2]
[357644169,1744264241768,-500.0,0.00038356,2]
[357644170,1744264241778,-500.0,0.00038356,2]
[357644171,1744264241787,-500.0,0.00038356,2]
[357644172,1744264241797,-500.0,0.00038356,2]
[357644173,1744264241806,-500.0,0.00038356,2]
[357644174,1744264241816,-500.0,0.00038356,2]
[357644175,1744264241826,-500.0,0.00038356,2]
[357644176,1744264241836,-592.98,0.00038356,2]
[357644177,1744264241846,-569.30855773,0.00038356,2]
[357644178,1744264241855,-1313.1,0.00038356,2]
[357644179,1744264241865,-500.0,0.00038356,2]
[357644180,1744264241874,-500.0,0.00038356,2]
[357644181,1744264241883,-500.0,0.00038356,2]
[357644182,1744264241893,-396.18908345,0.00038356,2]
[357644183,1744264241902,-560.64,0.00038356,2]
[357644184,1744264241912,-500.0,0.00038356,2]
[357644185,1744264241922,-500.0,0.00038356,2]
[357644186,1744264241931,-500.0,0.00038356,2]
[357644187,1744264241941,-500.0,0.00038356,2]
[357644188,1744264241951,-525.68947525,0.00038356,2]
[357644189,1744264241960,-500.0,0.00038356,2]
[357644190,1744264241970,-500.0,0.00038356,2]
[357644191,1744264241979,-528.8769184,0.00038356,2]
[357644192,1744264241988,-500.0,0.00038356,2]
[357644193,1744264241998,-500.0,0.00038356,2]
[357644194,1744264242008,-500.0,0.00038356,2]
[357644195,1744264242017,-500.0,0.00038356,2]
[357644196,1744264242026,-500.0,0.00038356,2]
[357644197,1744264242036,-500.0,0.00038356,2]
[357644198,1744264242045,-500.0,0.00038356,2]
[357644199,1744264242055,-634.05364784,0.00038356,2]
[357644200,1744264242065,-500.0,0.00038356,2]
[357644201,1744264242075,-1187.83,0.00038356,2]
[357644202,1744264242084,-626.22241273,0.00038356,2]
[357644203,1744264242093,-160.91294414,0.00038356,2]
[357644204,1744264242107,-1217.13,0.00038356,2]
[357644205,1744264242116,-937.63,0.00038356,2]
[357644206,1744264242125,-520.42910239,0.00038356,2]
[357644207,1744264242135,-500.0,0.00038356,2]
[357644208,1744264242144,-500.0,0.00038356,2]
[357644209,1744264242155,-601.80285094,0.00038356,2]
[357644210,1744264242164,-500.0,0.00038356,2]
[357644211,1744264242174,-500.0,0.00038356,2]
[357644212,1744264242183,-500.0,0.00038356,2]
[357644213,1744264242193,-500.0,0.00038356,2]
[357644214,1744264242203,-500.0,0.00038356,2]
[357644215,1744264242212,-500.0,0.00038356,2]
[357644216,1744264242221,-500.0,0.00038356,2]
[357644217,1744264242231,-500.0,0.00038356,2]
[357644218,1744264242241,-996.99,0.00038356,2]
[357644219,1744264242251,-500.0,0.00038356,2]
[357644220,1744264242261,-500.0,0.00038356,2]
[357644221,1744264242271,-500.0,0.00038356,2]
[357644222,1744264242280,-500.0,0.00038356,2]
[357644223,1744264242290,-511.6302931,0.00038356,2]
[357644224,1744264242300,-500.0,0.00038356,2]
[357644225,1744264242310,-500.0,0.00038356,2]
[357644226,1744264242319,-500.0,0.00038356,2]
[357644227,1744264242329,-500.0,0.00038356,2]
[357644228,1744264242339,-500.0,0.00038356,2]
[357644229,1744264242349,-500.0,0.00038356,2]
[357644230,1744264242359,-500.0,0.00038356,2]
[357644231,1744264242369,-500.0,0.00038356,2]
[357644232,1744264242378,-500.0,0.00038356,2]
[357644233,1744264242388,-500.0,0.00038356,2]
[357644234,1744264242398,-500.0,0.00038356,2]
[357644235,1744264242409,-500.0,0.00038356,2]
[357644236,1744264242652,-500.0,0.00038356,2]
[357644237,1744264242664,-500.0,0.00038356,2]
[357644239,1744264242674,-500.0,0.00038356,2]
[357644241,1744264242684,-500.0,0.00038356,2]
[357644242,1744264242695,-500.0,0.00038356,2]
[357644244,1744264242704,-500.0,0.00038356,2]
[357644246,1744264242715,-579.02,0.00038356,2]
[357644247,1744264242725,-500.0,0.00038356,2]
[357644249,1744264242735,-500.0,0.00038356,2]
[357644250,1744264242745,-500.0,0.00038356,2]
[357644252,1744264242756,-500.0,0.00038356,2]
[357644253,1744264242771,-500.0,0.00038356,2]
[357644255,1744264242782,-500.0,0.00038356,2]
[357644256,1744264242791,-500.0,0.00038356,2]
[357644257,1744264242803,-500.0,0.00038356,2]
[357644258,1744264242812,-504.94591904,0.00038356,2]
[357644259,1744264242822,-660.76,0.00038356,2]
[357644260,1744264242831,-516.49113659,0.00038356,2]
[357644261,1744264242845,-500.0,0.00038356,2]
[357644262,1744264242864,-500.0,0.00038356,2]
[357644263,1744264242877,-500.0,0.00038356,2]
[357644264,1744264242894,-500.0,0.00038356,2]
[357644265,1744264242907,-500.0,0.00038356,2]
[357644266,1744264242918,-1470.67,0.00038356,2]
[357644267,1744264242928,-500.0,0.00038356,2]
[357644268,1744264242938,-500.0,0.00038356,2]
[357644269,1744264242950,-500.0,0.00038356,2]
[357644270,1744264242960,-565.92754133,0.00038356,2]
[357644271,1744264242970,-500.0,0.00038356,2]
[357644272,1744264242979,-505.5208243,0.00038356,2]
[357644273,1744264242989,-865.9,0.00038356,2]
[357644274,1744264242999,-545.12,0.00038356,2]
[357644275,1744264243008,-500.0,0.00038356,2]
[357644276,1744264243017,-500.0,0.00038356,2]
[357644277,1744264243026,-870.14,0.00038356,2]
[357644278,1744264243036,-500.0,0.00038356,2]
[357644279,1744264243046,-507.66080046,0.00038356,2]
[357644280,1744264243056,-640.75,0.00038356,2]
[357644281,1744264243066,-500.0,0.00038356,2]
[357644282,1744264243075,-500.0,0.00038356,2]
[357644283,1744264243085,-500.0,0.00038356,2]
[357644284,1744264243095,-500.0,0.00038356,2]
[357644285,1744264243105,-500.0,0.00038356,2]
[357644286,1744264243115,-500.0,0.00038356,2]
[357644287,1744264243125,-580.19,0.00038356,2]
[357644288,1744264243134,-522.62319961,0.00038356,2]
[357644289,1744264243144,-500.0,0.00038356,2]
[357644290,1744264243153,-500.0,0.00038356,2]
[357644291,1744264243163,-500.0,0.00038356,2]
[357644292,1744264243172,-801.61,0.00038356,2]
[357644293,1744264243182,-564.99,0.00038356,2]
[357644294,1744264243191,-500.0,0.00038356,2]
[357644295,1744264243201,-500.0,0.00038356,2]
[357644296,1744264243210,-561.72845133,0.00038356,2]
[357644297,1744264243220,-500.0,0.00038356,2]
[357644298,1744264243229,-500.0,0.00038356,2]
[357644299,1744264243239,-1640.25,0.00038356,2]
[357644300,1744264243248,-500.0,0.00038356,2]
[357644301,1744264243258,-500.0,0.00038356,2]
[357644302,1744264243267,-500.0,0.00038356,2]
[357644303,1744264243276,-1033.23,0.00038356,2]
[357644304,1744264243286,-500.0,0.00038356,2]
[357644305,1744264243295,-500.0,0.00038356,2]
[357644306,1744264243305,-565.02744473,0.00038356,2]
[357644307,1744264243315,-500.0,0.00038356,2]
[357644308,1744264243324,-1278.71,0.00038356,2]
[357644310,1744264243334,-500.0,0.00038356,2]
[357644312,1744264243343,-500.0,0.00038356,2]
[357644313,1744264243353,-519.20271053,0.00038356,2]
[357644314,1744264243362,-500.0,0.00038356,2]